bitfinex-derivatives/quotes_BNBF0:USTF0_20250907
["timestamp","ask_amount","ask_price","bid_price","bid_amount"]
[1757233938278,0.19967639,871.25,868.42,0.70236144]
[1757233938477,0.19967639,871.25,868.43,0.70236144]
[1757233938779,0.19967639,871.25,868.14,0.19982315]
[1757233938780,2.57018102,870.66,868.44,0.70236144]
[1757233938977,2.57018102,870.66,868.45,0.70236144]
[1757233939177,2.57018102,870.66,868.14,0.19982315]
[1757233939382,2.57018102,870.63,868.15,0.70198409]
[1757233939577,2.57018102,870.63,868.16,0.70198409]
[1757233939778,2.57018102,870.59,868.17,0.70198409]
[1757233940082,2.57018102,870.59,868.18,0.70198409]
[1757233940381,2.57018102,870.05,868.19,0.70198409]
[1757233940581,2.57018102,870.05,868.2,0.70198409]
[1757233940782,2.57018102,870.05,868.21,0.70198409]
[1757233941077,3.61179212,870.43,868.22,0.70198409]
[1757233941078,2.57018102,870.01,868.22,0.70198409]
[1757233941277,2.57018102,870.01,868.23,0.70198409]
[1757233941476,2.57018102,870.01,868.14,0.19982315]
[1757233941477,2.57018102,870.01,868.24,0.70198409]
[1757233941677,2.57018102,870.01,868.14,0.19982315]
[1757233941678,2.57018102,870.01,868.25,0.70198409]
[1757233941876,2.57018102,870.01,868.26,0.70198409]
[1757233942080,2.57018102,870.01,868.27,0.70198409]
[1757233942279,2.57018102,870.01,868.28,0.70198409]
[1757233942482,2.57018102,869.98,868.29,0.70198409]
[1757233942681,2.57018102,869.98,868.3,0.70198409]
[1757233942881,2.57018102,869.93,868.31,0.70198409]
[1757233943084,2.57018102,869.93,868.32,0.70198409]
[1757233943283,2.57018102,869.93,868.33,0.70198409]
[1757233943481,2.57018102,869.94,868.34,0.70198409]
[1757233943683,2.57018102,869.94,868.14,0.19982315]
[1757233943684,2.57018102,869.94,868.35,0.70198409]
[1757233943883,2.57018102,869.94,868.36,0.70198409]
[1757233944080,2.57018102,869.94,868.37,0.70198409]
[1757233944283,2.57018102,869.94,868.14,0.19982315]
[1757233944482,2.57018102,870.03,868.15,0.70182943]
[1757233944681,2.57018102,870.03,868.16,0.70182943]
[1757233944885,2.57018102,870.03,868.17,0.70182943]
[1757233945084,2.57018102,870.19,868.18,0.70182943]
[1757233945285,2.57018102,870.19,868.19,0.70182943]
[1757233945486,2.57018102,870.19,868.2,0.70182943]
[1757233945684,2.57018102,870.19,868.21,0.70182943]
[1757233945885,2.57018102,870.19,868.22,0.70182943]
[1757233946085,2.57018102,870.19,868.23,0.70182943]
[1757233946282,2.57018102,870.19,868.24,0.70182943]
[1757233946582,5.17691132,870.98,868.14,0.19982315]
[1757233946583,2.57018102,870.23,868.25,0.70182943]
[1757233946883,2.57018102,870.23,868.26,0.70182943]
[1757233947083,2.57018102,870.23,868.27,0.70182943]
[1757233947282,2.57018102,870.23,868.28,0.70182943]
[1757233947484,2.57018102,870.23,868.29,0.70182943]
[1757233947687,2.57018102,870.23,868.3,0.70182943]
[1757233947885,2.57018102,870.23,868.31,0.70182943]
[1757233948187,2.57018102,870.23,868.32,0.70182943]
[1757233948385,2.57018102,870.23,868.33,0.70182943]
[1757233948585,2.57018102,870.23,868.34,0.70182943]
[1757233948787,2.57018102,870.23,868.35,0.70182943]
[1757233948987,2.57018102,870.23,868.36,0.70182943]
[1757233949184,2.57018102,870.22,868.37,0.70182943]
[1757233949384,2.57018102,870.22,868.38,0.70182943]
[1757233949589,2.57018102,870.22,868.14,0.19982315]
[1757233949790,2.57018102,870.22,868.15,0.70172693]
[1757233950085,2.57018102,870.22,868.16,0.70172693]
[1757233950289,2.57018102,870.23,868.17,0.70172693]
[1757233950584,2.57018102,870.23,868.18,0.70172693]
[1757233950787,2.57018102,870.23,868.19,0.70172693]
[1757233950985,2.57018102,870.23,868.2,0.70172693]
[1757233951185,2.57018102,870.23,868.21,0.70172693]
[1757233951388,2.57018102,870.23,868.22,0.70172693]
[1757233951586,2.57018102,870.23,868.23,0.70172693]
[1757233951786,2.57018102,870.23,868.24,0.70172693]
[1757233952086,2.57018102,870.23,868.25,0.70172693]
[1757233952290,2.57018102,870.21,868.26,0.70172693]
[1757233952487,2.57018102,870.21,868.48,0.76295872]
[1757233952786,3.61179212,870.65,868.48,0.76591433]
[1757233952991,2.57018102,870.68,868.49,0.70174193]
[1757233953191,2.57018102,870.68,868.5,0.70174193]
[1757233953389,2.57018102,870.67,868.51,0.70174193]
[1757233953692,2.57018102,870.67,868.52,0.70174193]
[1757233953894,2.57018102,870.67,868.53,0.70174193]
[1757233954192,2.57018102,870.67,868.54,0.70174193]
[1757233954391,2.57018102,870.61,868.55,0.70174193]
[1757233954589,2.57018102,870.61,868.56,0.70174193]
[1757233954789,2.57018102,870.61,868.57,0.70174193]
[1757233954988,2.57018102,870.43,868.58,0.70174193]
[1757233955189,2.57018102,870.43,868.59,0.70174193]
[1757233955488,2.57018102,870.42,868.6,0.70174193]
[1757233955691,2.57018102,870.42,868.61,0.70174193]
[1757233955891,2.57018102,870.42,868.62,0.70174193]
[1757233956094,2.57018102,870.26,868.63,0.70174193]
[1757233956394,2.57018102,870.26,868.64,0.70174193]
[1757233956593,2.57018102,870.26,868.65,0.70174193]
[1757233956794,2.57018102,870.26,868.66,0.70174193]
[1757233956992,2.57018102,870.26,868.67,0.70174193]
[1757233957196,2.57018102,870.26,868.68,0.70174193]
[1757233957393,2.57018102,870.26,868.69,0.70174193]
[1757233957596,2.57018102,870.26,868.7,0.70174193]
[1757233957797,2.57018102,870.26,868.71,0.70174193]
[1757233957997,2.57018102,870.26,868.72,0.70174193]
[1757233958198,2.57018102,870.3,868.73,0.70174193]
[1757233958399,2.57018102,870.3,868.74,0.70174193]
[1757233958595,2.57018102,870.3,868.75,0.70174193]
[1757233958796,2.57018102,870.3,868.76,0.70174193]
[1757233958995,2.57018102,870.3,868.77,0.70174193]
[1757233959200,2.57018102,870.27,868.78,0.70174193]
[1757233959397,2.57018102,870.27,868.79,0.70174193]
[1757233959602,2.57018102,870.27,868.8,0.70174193]
[1757233959903,2.57018102,870.27,868.81,0.70174193]
[1757233960197,2.57018102,870.24,868.82,0.70174193]
[1757233960402,2.57018102,870.24,868.83,0.702794]
[1757233960596,2.57018102,870.24,868.55,0.76591433]
[1757233960798,2.57018102,870.27,868.56,0.70279387]
[1757233961000,2.57018102,870.27,868.57,0.70279387]
[1757233961300,2.57018102,870.26,868.58,0.70279387]
[1757233961498,2.57018102,870.26,868.59,0.70279387]
[1757233961697,2.57018102,870.25,868.6,0.70279387]
[1757233961903,2.57018102,870.25,868.61,0.70279387]
[1757233962099,2.57018102,870.25,868.62,0.70279387]
[1757233962302,2.57018102,870.24,868.14,0.19982315]
[1757233962602,2.57018102,870.24,868.15,0.69732584]
[1757233962801,2.57018102,869.83,868.16,0.69732584]
[1757233963002,3.61179212,870.55,868.17,0.69732584]
[1757233963200,3.61179212,870.55,868.18,0.69732584]
[1757233963404,3.61179212,870.14,868.19,0.69732584]
[1757233963704,3.61179212,870.14,868.2,0.69732584]
[1757233963903,3.61179212,870.14,868.21,0.69732584]
[1757233964101,3.61179212,870.14,868.22,0.69732584]
[1757233964305,3.61179212,870.2,868.23,0.69732584]
[1757233964604,3.61179212,870.2,868.24,0.69732584]
[1757233964902,3.61179212,870.2,868.25,0.69732584]
[1757233965201,3.61179212,870.2,868.26,0.69732584]
[1757233965404,3.61179212,870.17,868.27,0.69732584]
[1757233965603,3.61179212,870.17,868.28,0.69732584]
[1757233965801,3.61179212,870.17,868.29,0.69732584]
[1757233966000,3.61179212,870.17,868.18,0.76591433]
[1757233966001,3.61179212,870.17,868.3,0.69732584]
[1757233966205,3.61179212,870.17,868.31,0.69732584]
[1757233966403,3.61179212,870.15,868.32,0.69732584]
[1757233966602,3.61179212,870.15,868.33,0.69732584]
[1757233966806,3.61179212,870.15,868.34,0.69732584]
[1757233967102,3.61179212,870.15,868.35,0.69732584]
[1757233967305,3.61179212,870.15,868.36,0.69732584]
[1757233967503,3.61179212,870.12,868.37,0.69732584]
[1757233967706,3.61179212,870.12,868.38,0.69732584]
[1757233968001,3.61179212,870.12,868.39,0.69732584]
[1757233968208,3.61179212,870.12,868.4,0.69732584]
[1757233968403,3.61179212,870.12,868.41,0.69732584]
[1757233968601,3.61179212,870.12,868.42,0.69732584]
[1757233968801,3.61179212,870.12,868.43,0.69732584]
[1757233969006,3.61179212,870.12,868.44,0.69732584]
[1757233969205,3.61179212,870.12,868.45,0.69732584]
[1757233969408,3.61179212,870.12,868.46,0.69732584]
[1757233969604,3.61179212,870.11,868.19,0.76591433]
[1757233969904,3.61179212,870.11,868.2,0.71625884]
[1757233970109,3.61179212,870.11,868.21,0.71625884]
[1757233970310,3.61179212,870.11,868.22,0.71625884]
[1757233970604,3.61179212,870.16,868.23,0.71625884]
[1757233970809,3.61179212,870.16,868.24,0.71625884]
[1757233971109,3.61179212,870.16,868.25,0.71625884]
[1757233971309,3.61179212,870.16,868.26,0.71625884]
[1757233971606,0.19967639,871.25,868.18,0.76591433]
[1757233971607,3.61179212,870.15,868.27,0.71625884]
[1757233971806,3.61179212,870.15,868.28,0.71625884]
[1757233972010,2.57613012,869.88,868.29,0.71625884]
[1757233972209,2.57613012,869.88,868.3,0.71625884]
[1757233972507,2.57613012,869.99,868.3,0.76591433]
[1757233973305,2.57613012,869.99,868.31,0.71625884]
[1757233973509,2.57613012,870.24,868.32,0.71625884]
[1757233973710,2.57613012,870.24,868.33,0.71625884]
[1757233974006,2.57613012,870.24,868.34,0.71625884]
[1757233974210,2.57613012,870.24,868.35,0.71625884]
[1757233974509,2.57613012,870.21,868.36,0.71625884]
[1757233974805,2.57613012,870.21,868.37,0.71625884]
[1757233975009,2.57613012,870.21,868.38,0.71625884]
[1757233975205,3.61179212,870.6,868.39,0.71625884]
[1757233975206,2.57613012,870.1,868.39,0.71625884]
[1757233975408,2.57613012,870.1,868.4,0.71625884]
[1757233975609,2.57613012,870.1,868.19,0.76591433]
[1757233975610,2.57613012,870.1,868.41,0.71625884]
[1757233975909,2.57613012,870.1,868.42,0.71625884]
[1757233976110,2.57613012,870.12,868.43,0.71625884]
[1757233976410,2.57613012,870.12,868.44,0.71625884]
[1757233976608,3.61179212,870.49,868.14,0.19982315]
[1757233976609,2.57613012,869.99,868.45,0.71625884]
[1757233976804,2.57613012,869.99,868.46,0.71625884]
[1757233977008,2.57613012,869.99,868.47,0.71625884]
[1757233977305,2.57613012,869.99,868.48,0.71625884]
[1757233977505,2.57613012,869.99,868.49,0.71625884]
[1757233977807,2.57613012,870.52,868.5,0.71625884]
[1757233978110,2.57613012,870.57,868.51,0.71625884]
[1757233978405,2.57613012,870.57,868.52,0.71625884]
[1757233978706,2.57613012,870.57,868.53,0.71625884]
[1757233979011,2.57613012,870.57,868.54,0.71625884]
[1757233979305,2.57613012,870.57,868.55,0.71149196]
[1757233979506,2.57613012,870.57,868.56,0.71149196]
[1757233979711,2.57613012,870.57,868.14,0.19982315]
[1757233980006,0.19967639,871.25,868.15,0.71150435]
[1757233980007,2.57613012,870.66,868.15,0.71150435]
[1757233980205,2.57613012,870.66,868.16,0.71150435]
[1757233980406,2.57613012,870.53,868.17,0.71150435]
[1757233980609,2.57613012,870.53,868.18,0.71150435]
[1757233980810,2.57613012,870.53,868.19,0.71150435]
[1757233981008,2.57613012,870.53,868.2,0.71150435]
[1757233981211,2.57613012,870.53,868.21,0.71150435]
[1757233981409,2.57613012,870.51,868.22,0.71150435]
[1757233981611,2.57613012,870.51,868.23,0.71150435]
[1757233981911,2.57613012,870.51,868.14,0.19982315]
[1757233981912,2.57613012,870.47,868.24,0.71150435]
[1757233982111,2.57613012,870.47,868.14,0.19982315]
[1757233982112,2.57613012,870.47,868.25,0.71150435]
[1757233982414,2.57613012,870.38,868.26,0.71150435]
[1757233982610,2.57613012,870.38,868.27,0.71150435]
[1757233982815,2.57613012,870.38,868.28,0.71150435]
[1757233983111,2.57613012,870.38,868.29,0.71150435]
[1757233983316,2.57613012,870.38,868.3,0.71150435]
[1757233983516,2.57613012,870.37,868.31,0.71150435]
[1757233983716,2.57613012,870.37,868.32,0.70603608]
[1757233984014,2.57613012,870.37,868.33,0.70603608]
[1757233984214,2.57613012,870.37,868.34,0.70603608]
[1757233984513,2.57613012,870.37,868.35,0.70603608]
[1757233984717,2.57613012,870.37,868.36,0.70603608]
[1757233984915,2.57613012,870.37,868.37,0.70603608]
[1757233985119,2.57613012,870.37,868.38,0.70603608]
[1757233985315,2.57613012,870.36,868.39,0.70603608]
[1757233985521,2.57613012,870.36,868.4,0.70603608]
[1757233985720,2.57613012,870.36,868.41,0.70603608]
[1757233985919,2.57613012,870.28,868.42,0.70603608]
[1757233986117,2.57613012,870.28,868.14,0.19982315]
[1757233986419,2.57613012,870.46,868.15,0.70658258]
[1757233986616,2.57613012,870.46,868.16,0.70658258]
[1757233986917,2.57613012,870.44,868.17,0.70658258]
[1757233987116,2.57613012,870.44,868.18,0.70658258]
[1757233987320,2.57613012,870.44,868.19,0.70658258]
[1757233987620,2.57613012,870.44,868.2,0.70658258]
[1757233987819,2.57613012,870.44,868.21,0.70658258]
[1757233988016,2.57613012,870.44,868.22,0.70658258]
[1757233988219,2.57613012,870.44,868.23,0.70658258]
[1757233988516,2.57613012,870.45,868.24,0.70658258]
[1757233988720,2.57613012,870.45,868.25,0.70658258]
[1757233988917,2.57613012,870.45,868.26,0.70658258]
[1757233989118,2.57613012,870.45,868.27,0.70658258]
[1757233989317,2.57613012,870.45,868.28,0.70658258]
[1757233989617,2.57613012,870.48,868.29,0.70658258]
[1757233989823,2.57613012,870.48,868.3,0.70658258]
[1757233990017,2.57613012,870.48,868.31,0.70658258]
[1757233990216,2.57613012,870.48,868.32,0.70658258]
[1757233990420,2.57613012,870.45,868.33,0.70658258]
[1757233990620,2.57613012,870.45,868.34,0.70658258]
[1757233990820,2.57613012,870.45,868.14,0.19982315]
[1757233991022,2.57613012,870.44,868.15,0.70059401]
[1757233991321,2.57613012,870.44,868.16,0.70059401]
[1757233991522,2.57613012,870.46,868.17,0.70059401]
[1757233991720,2.57613012,870.46,868.18,0.70059401]
[1757233991922,2.57613012,870.46,868.19,0.70059401]
[1757233992121,2.57613012,870.43,868.2,0.70059401]
[1757233992321,2.57613012,870.43,868.21,0.70059401]
[1757233992520,2.57613012,870.59,868.22,0.70059401]
[1757233992821,2.57613012,870.59,868.23,0.70059401]
[1757233993123,2.57613012,870.59,868.24,0.70059401]
[1757233993324,2.57613012,870.59,868.25,0.70059401]
[1757233993521,2.57613012,870.24,868.26,0.70059401]
[1757233993821,2.57613012,870.24,868.27,0.70059401]
[1757233994021,2.57613012,870.24,868.28,0.70059401]
[1757233994324,2.57613012,870.24,868.14,0.19982315]
[1757233994523,2.57613012,870.27,868.15,0.70054605]
[1757233994725,2.57613012,870.27,868.16,0.70054605]
[1757233994921,2.57613012,870.27,868.17,0.70054605]
[1757233995121,2.57613012,870.31,868.18,0.70054605]
[1757233995324,2.57613012,870.31,868.19,0.70054605]
[1757233995522,2.57613012,870.31,868.2,0.70054605]
[1757233995726,2.57613012,870.33,868.21,0.70054605]
[1757233996022,2.57613012,870.33,868.22,0.70054605]
[1757233996222,2.57613012,870.33,868.23,0.70054605]
[1757233996524,2.57613012,870.33,868.24,0.70054605]
[1757233996722,2.57613012,870.35,868.14,0.19982315]
[1757233997022,2.57613012,870.35,868.15,0.69996248]
[1757233997221,2.57613012,870.25,868.16,0.69996248]
[1757233997427,2.57613012,870.25,868.17,0.69996248]
[1757233997627,2.57613012,870.27,868.18,0.69996248]
[1757233997927,2.57613012,870.27,868.19,0.69996248]
[1757233998122,2.57613012,870.27,868.2,0.69996248]
[1757233998324,2.57613012,870.27,868.14,0.19982315]
[1757233998526,2.57613012,870.27,868.15,0.69952534]
[1757233998727,2.57613012,870.28,868.16,0.69952534]
[1757233998928,2.57613012,870.28,868.17,0.69952534]
[1757233999129,2.57613012,870.28,868.18,0.69952534]
[1757233999429,2.57613012,870.31,868.19,0.69952534]
[1757233999729,3.61179212,870.75,868.14,0.19982315]
[1757233999730,2.57613012,870.19,868.14,0.19982315]
[1757233999930,2.57613012,870.19,868.15,0.69934318]
[1757234000126,2.57613012,870.19,868.16,0.69934318]
[1757234000327,2.57613012,870.26,868.17,0.69934318]
[1757234000525,2.57613012,870.26,868.18,0.69934318]
[1757234000728,2.57613012,870.26,868.19,0.69934318]
[1757234000926,2.57613012,870.26,868.36,0.1999391]
[1757234001429,2.57613012,870.28,868.36,0.1999391]
[1757234002530,2.57613012,869.99,868.36,0.1999391]
[1757234003531,3.61179212,870.44,868.36,0.1999391]
[1757234003532,2.57613012,869.77,868.36,0.1999391]
[1757234003932,2.57613012,869.78,868.36,0.1999391]
[1757234004430,2.57613012,869.9,868.36,0.1999391]
[1757234004935,2.57613012,869.85,868.36,0.1999391]
[1757234005543,2.57613012,869.86,868.36,0.1999391]
[1757234008633,2.57613012,869.87,868.36,0.1999391]
[1757234009033,2.57613012,869.88,868.36,0.1999391]
[1757234010134,2.57613012,869.8,868.36,0.1999391]
[1757234010639,2.57613012,869.81,868.36,0.1999391]
[1757234011136,2.57613012,869.82,868.36,0.1999391]
[1757234011737,2.57613012,869.83,868.36,0.1999391]
[1757234012740,2.57613012,869.89,868.36,0.1999391]
[1757234013341,2.57613012,869.88,868.36,0.1999391]
[1757234013636,2.57613012,869.89,868.36,0.1999391]
[1757234014241,2.57613012,869.76,868.36,0.1999391]
[1757234014738,2.57613012,869.77,868.36,0.1999391]
[1757234016443,2.57613012,869.76,868.36,0.1999391]
[1757234017446,2.57613012,869.73,868.36,0.1999391]
[1757234018247,2.57613012,869.72,868.36,0.1999391]
[1757234018744,2.57613012,869.71,868.36,0.1999391]
[1757234019243,2.57613012,869.77,868.36,0.1999391]
[1757234019848,2.57613012,869.76,868.36,0.1999391]
[1757234020242,2.57613012,869.73,868.36,0.1999391]
[1757234021344,2.57613012,869.72,868.36,0.1999391]
[1757234022444,2.57613012,869.69,868.36,0.1999391]
[1757234023044,2.77613874,869.95,868.36,0.1999391]
[1757234023446,2.57613012,869.91,868.36,0.1999391]
[1757234024545,0.20000862,869.95,868.36,0.1999391]
[1757234025648,2.57613012,869.92,868.36,0.1999391]
[1757234026149,2.57613012,869.88,868.36,0.1999391]
[1757234026548,2.57613012,869.85,868.36,0.1999391]
[1757234028053,2.57613012,869.86,868.36,0.1999391]
[1757234029151,0.20000862,869.95,868.36,0.1999391]
[1757234031453,2.77613874,869.95,868.36,0.1999391]
[1757234031856,2.57613012,869.91,868.36,0.1999391]
[1757234032355,2.57613012,869.93,868.36,0.1999391]
[1757234032854,2.57613012,869.81,868.36,0.1999391]
[1757234033354,2.57613012,869.65,868.36,0.1999391]
[1757234034356,0.20000862,869.95,868.36,0.1999391]
[1757234034357,2.57613012,869.7,868.36,0.1999391]
[1757234034957,2.57613012,869.71,868.36,0.1999391]
[1757234035354,2.57613012,869.7,868.36,0.1999391]
[1757234036561,2.57613012,869.71,868.36,0.1999391]
[1757234037057,2.57613012,869.75,868.36,0.1999391]
[1757234037460,2.57613012,869.76,868.36,0.1999391]
[1757234037960,2.57613012,869.79,868.36,0.1999391]
[1757234039059,2.57613012,869.8,868.36,0.1999391]
[1757234039459,0.20000862,869.95,868.36,0.1999391]
[1757234045166,2.57613012,869.55,868.36,0.1999391]
[1757234045469,2.57613012,869.79,868.36,0.1999391]
[1757234046665,2.57613012,869.78,868.36,0.1999391]
[1757234047070,2.57613012,869.77,868.36,0.1999391]
[1757234047671,2.57613012,869.76,868.36,0.1999391]
[1757234048568,2.57613012,869.75,868.36,0.1999391]
[1757234050271,2.57613012,869.74,868.36,0.1999391]
[1757234050775,2.57613012,869.73,868.36,0.1999391]
[1757234051169,2.57613012,869.72,868.36,0.1999391]
[1757234051874,2.57613012,869.73,868.36,0.1999391]
[1757234052372,2.57613012,869.71,868.36,0.1999391]
[1757234052871,2.57613012,869.55,868.36,0.1999391]
[1757234053275,0.20000862,869.95,868.36,0.1999391]
[1757234053276,2.57613012,869.53,868.36,0.1999391]
[1757234053975,2.57613012,869.42,868.36,0.1999391]
[1757234055472,2.57613012,869.2,868.36,0.1999391]
[1757234055874,2.57613012,869.13,868.36,0.1999391]
[1757234056572,2.57613012,869.14,868.36,0.1999391]
[1757234057473,2.57613012,869.2,868.36,0.1999391]
[1757234059580,2.57613012,869.19,868.36,0.1999391]
[1757234061178,2.57613012,869.18,868.36,0.1999391]
[1757234061581,2.57613012,869.27,868.36,0.1999391]
[1757234062082,2.57613012,869.26,868.36,0.1999391]
[1757234062883,2.57613012,869.4,868.36,0.1999391]
[1757234063681,2.57613012,869.39,868.36,0.1999391]
[1757234064782,2.57613012,869.38,868.36,0.1999391]
[1757234065285,2.57613012,869.36,868.36,0.1999391]
[1757234065987,2.57613012,869.47,868.36,0.1999391]
[1757234066387,2.57613012,869.5,868.36,0.1999391]
[1757234066984,2.57613012,869.69,868.36,0.1999391]
[1757234067388,2.57613012,869.72,868.36,0.1999391]
[1757234068389,2.57613012,869.71,868.36,0.1999391]
[1757234069391,2.57613012,869.7,868.36,0.1999391]
[1757234070488,2.57613012,869.69,868.36,0.1999391]
[1757234070887,2.57613012,869.65,868.36,0.1999391]
[1757234071493,2.57613012,869.64,868.36,0.1999391]
[1757234072187,2.57613012,869.65,868.36,0.1999391]
[1757234072489,2.57613012,869.54,868.36,0.1999391]
[1757234073591,2.57613012,869.55,868.36,0.1999391]
[1757234074689,2.57613012,869.54,868.36,0.1999391]
[1757234075091,2.57613012,869.52,868.36,0.1999391]
[1757234075790,2.57613012,869.5,868.36,0.1999391]
[1757234076590,2.57613012,869.3,868.36,0.1999391]
[1757234077189,2.57613012,869.25,868.36,0.1999391]
[1757234077791,2.57613012,869.24,868.36,0.1999391]
[1757234078194,2.57613012,869.28,868.36,0.1999391]
[1757234078694,2.57613012,869.26,868.36,0.1999391]
[1757234079395,2.57613012,869.23,868.36,0.1999391]
[1757234079794,2.57613012,869.22,868.36,0.1999391]
[1757234080295,2.57613012,869.29,868.36,0.1999391]
[1757234081490,2.57613012,869.28,868.36,0.1999391]
[1757234081895,2.57613012,869.26,868.36,0.1999391]
[1757234082597,2.57613012,869.24,868.36,0.1999391]
[1757234083494,2.57613012,869.11,868.36,0.1999391]
[1757234084996,2.57613012,869.1,868.36,0.1999391]
[1757234085995,2.57613012,868.97,866.98,0.76545837]
[1757234086194,2.57613012,868.97,866.99,0.69636548]
[1757234086394,2.57613012,868.97,867.0,0.69636548]
[1757234086598,2.57613012,868.96,867.01,0.69636548]
[1757234086799,2.57613012,868.96,867.02,0.69636548]
[1757234086997,2.57613012,868.96,867.03,0.69636548]
[1757234087196,2.57613012,868.96,867.04,0.69636548]
[1757234087401,2.57613012,868.96,867.05,0.69636548]
[1757234087697,2.57613012,868.96,867.06,0.69636548]
[1757234087895,2.57613012,868.96,867.07,0.69636548]
[1757234088195,2.57613012,868.92,867.08,0.69636548]
[1757234088397,2.57613012,868.92,867.09,0.69636548]
[1757234088600,2.57613012,868.71,867.1,0.69636548]
[1757234088800,2.57613012,868.71,867.11,0.69636548]
[1757234089001,3.61179212,869.17,867.5,0.20013342]
[1757234089199,3.61179212,869.17,867.51,0.69636548]
[1757234089900,5.17691132,869.73,867.51,0.69636548]
[1757234091002,0.20000862,869.95,867.51,0.69636548]
[1757234100213,2.57613012,869.87,867.51,0.69636548]
[1757234102011,2.57613012,869.86,867.51,0.69636548]
[1757234102518,0.20000862,869.95,867.5,0.20013342]
[1757234102519,2.57613012,869.55,867.5,0.20013342]
[1757234102916,2.57613012,869.38,867.5,0.20013342]
[1757234103917,2.57613012,869.29,867.5,0.20013342]
[1757234104417,2.57613012,869.21,867.5,0.20013342]
[1757234104918,2.57613012,869.0,867.5,0.20013342]
[1757234105919,2.57613012,869.07,867.5,0.20013342]
[1757234107622,2.57613012,869.08,867.5,0.20013342]
[1757234108725,2.57613012,869.05,867.5,0.20013342]
[1757234109625,3.61179212,869.47,867.5,0.20013342]
[1757234109626,2.57613012,869.06,867.5,0.20013342]
[1757234110224,2.57613012,868.93,867.5,0.20013342]
[1757234111229,2.57613012,869.04,867.5,0.20013342]
[1757234111725,2.57613012,869.02,867.5,0.20013342]
[1757234112830,2.57613012,869.24,867.5,0.20013342]
[1757234113831,2.57613012,869.2,867.5,0.20013342]
[1757234114431,2.57613012,869.19,867.5,0.20013342]
[1757234115932,2.57613012,869.12,867.5,0.20013342]
[1757234116431,2.57613012,869.01,867.5,0.20013342]
[1757234116930,2.57613012,869.0,867.5,0.20013342]
[1757234117432,3.61179212,869.39,867.5,0.20013342]
[1757234117433,2.57613012,868.99,867.5,0.20013342]
[1757234118529,2.57613012,868.66,867.5,0.20013342]
[1757234119633,2.57613012,868.69,867.5,0.20013342]
[1757234120034,2.57613012,868.71,867.5,0.20013342]
[1757234121136,2.57613012,868.7,867.5,0.20013342]
[1757234122034,2.57613012,868.87,867.5,0.20013342]
[1757234124134,2.57613012,869.58,867.5,0.20013342]
[1757234124738,2.57613012,869.59,867.5,0.20013342]
[1757234126742,2.57613012,869.6,867.5,0.20013342]
[1757234128340,2.57613012,869.61,867.5,0.20013342]
[1757234129240,2.57613012,869.6,867.5,0.20013342]
[1757234129842,2.57613012,869.59,867.5,0.20013342]
[1757234131446,2.57613012,869.6,867.5,0.20013342]
[1757234131948,2.57613012,869.59,867.5,0.20013342]
[1757234132544,2.57613012,869.69,867.5,0.20013342]
[1757234133047,2.57613012,869.51,867.5,0.20013342]
[1757234133647,2.57613012,869.4,867.5,0.20013342]
[1757234134049,2.57613012,869.06,867.5,0.20013342]
[1757234135645,2.57613012,869.07,867.5,0.20013342]
[1757234136647,2.57613012,869.08,867.5,0.20013342]
[1757234137050,2.57613012,869.07,867.5,0.20013342]
[1757234137745,2.57613012,869.02,867.5,0.20013342]
[1757234138247,2.57613012,868.98,867.5,0.20013342]
[1757234139751,2.57613012,868.94,867.5,0.20013342]
[1757234141953,2.57613012,868.85,867.5,0.20013342]
[1757234142951,2.57613012,868.66,867.5,0.20013342]
[1757234143356,2.57613012,868.67,867.5,0.20013342]
[1757234144452,2.57613012,868.66,867.5,0.20013342]
[1757234144951,2.57613012,868.95,867.5,0.20013342]
[1757234146157,3.61179212,869.35,867.5,0.20013342]
[1757234146158,2.57613012,868.94,867.5,0.20013342]
[1757234146553,2.57613012,869.07,867.5,0.20013342]
[1757234147056,2.57613012,869.1,867.5,0.20013342]
[1757234147560,2.57613012,869.09,867.5,0.20013342]
[1757234148057,2.57613012,869.06,867.5,0.20013342]
[1757234149162,2.57613012,869.07,867.5,0.20013342]
[1757234149662,2.57613012,869.05,867.5,0.20013342]
[1757234150265,2.57613012,869.07,867.5,0.20013342]
[1757234151362,2.57613012,869.06,867.5,0.20013342]
[1757234151867,2.57613012,869.07,867.5,0.20013342]
[1757234152267,2.57613012,869.13,867.5,0.20013342]
[1757234152867,2.57613012,869.1,867.5,0.20013342]
[1757234153368,2.57613012,868.97,867.5,0.20013342]
[1757234154370,0.20000862,869.95,867.5,0.20013342]
[1757234154371,2.57613012,868.96,867.5,0.20013342]
[1757234155565,2.57613012,868.93,867.5,0.20013342]
[1757234156470,2.57613012,868.84,867.5,0.20013342]
[1757234156965,2.57613012,868.8,867.5,0.20013342]
[1757234157665,2.57613012,868.78,867.5,0.20013342]
[1757234158070,2.57613012,868.79,867.5,0.20013342]
[1757234158673,2.57613012,868.78,867.5,0.20013342]
[1757234159270,2.57613012,868.76,867.5,0.20013342]
[1757234159673,2.57613012,868.75,867.5,0.20013342]
[1757234160173,2.57613012,868.73,867.5,0.20013342]
[1757234161278,2.57613012,868.75,867.5,0.20013342]
[1757234161674,2.57613012,868.71,867.5,0.20013342]
[1757234161974,1.13953063,868.71,867.5,0.20013342]
[1757234162180,3.61179212,869.06,867.5,0.20013342]
[1757234162779,5.17691132,869.61,867.5,0.20013342]